[Event "UK Open Blitz Championships 2024 - London Qualifier"]
[Site "London, United Kingdom"]
[Date "2024.09.21"]
[Round "4.3"]
[White "Roberson, Peter T"]
[Black "Dignam, Matthew P"]
[Result "1-0"]
[TimeControl "3 minutes + 2 seconds incr. from move 1"]
[WhiteTitle "IM"]
[WhiteFideId "412384"]
[BlackFideId "2501422"]
[WhiteElo "2346"]
[BlackElo "2043"]

1. e4 {[%clk 00:03:03]} d6 {[%clk 00:03:02]} {[%emt 00:00:02]} 2. d4 {[%clk
00:03:04]} {[%emt 00:00:01]} Nf6 {[%clk 00:02:59]} {[%emt 00:00:04]} 3. Nc3
{[%clk 00:03:05]} {[%emt 00:00:01]} c6 {[%clk 00:02:59]} {[%emt 00:00:02]} 4.
Nf3 {[%clk 00:03:05]} {[%emt 00:00:02]} Bg4 {[%clk 00:02:55]} {[%emt 00:00:06]}
5. h3 {[%clk 00:03:06]} {[%emt 00:00:02]} Bh5 {[%clk 00:02:53]} {[%emt
00:00:04]} 6. g4 {[%clk 00:02:48]} {[%emt 00:00:21]} Bg6 {[%clk 00:02:51]}
{[%emt 00:00:03]} 7. Qe2 {[%clk 00:02:48]} {[%emt 00:00:02]} e6 {[%clk
00:02:11]} {[%emt 00:00:42]} 8. h4 {[%clk 00:02:49]} {[%emt 00:00:02]} h5
{[%clk 00:01:52]} {[%emt 00:00:21]} 9. g5 {[%clk 00:02:50]} {[%emt 00:00:01]}
Nfd7 {[%clk 00:01:47]} {[%emt 00:00:06]} 10. d5 {[%clk 00:02:46]} {[%emt
00:00:06]} e5 {[%clk 00:01:27]} {[%emt 00:00:23]} 11. Bh3 {[%clk 00:02:28]}
{[%emt 00:00:20]} Be7 {[%clk 00:01:15]} {[%emt 00:00:13]} 12. Be3 {[%clk
00:02:16]} {[%emt 00:00:14]} c5 {[%clk 00:01:10]} {[%emt 00:00:07]} 13. Nd2
{[%clk 00:02:11]} {[%emt 00:00:07]} O-O {[%clk 00:00:57]} {[%emt 00:00:15]} 14.
a4 {[%clk 00:02:05]} {[%emt 00:00:08]} Na6 {[%clk 00:00:54]} {[%emt 00:00:05]}
15. O-O {[%clk 00:01:59]} {[%emt 00:00:09]} Nb4 {[%clk 00:00:45]} {[%emt
00:00:10]} 16. Nc4 {[%clk 00:01:56]} {[%emt 00:00:06]} Nb6 {[%clk 00:00:43]}
{[%emt 00:00:04]} 17. Na3 {[%clk 00:01:38]} {[%emt 00:00:21]} Qe8 {[%clk
00:00:37]} {[%emt 00:00:07]} 18. f3 {[%clk 00:01:20]} {[%emt 00:00:21]} f5
{[%clk 00:00:37]} {[%emt 00:00:02]} 19. a5 {[%clk 00:01:15]} {[%emt 00:00:08]}
Nc8 {[%clk 00:00:30]} {[%emt 00:00:07]} 20. Nc4 {[%clk 00:01:03]} {[%emt
00:00:15]} Qf7 {[%clk 00:00:19]} {[%emt 00:00:13]} 21. Nb5 {[%clk 00:00:58]}
{[%emt 00:00:07]} Na6 {[%clk 00:00:08]} {[%emt 00:00:13]} 22. Kh2 {[%clk
00:00:49]} {[%emt 00:00:10]} Qe8 {[%clk 00:00:09]} {[%emt 00:00:01]} 23. Nd2
{[%clk 00:00:45]} {[%emt 00:00:06]} Qd8 {[%clk 00:00:09]} {[%emt 00:00:01]} 24.
exf5 {[%clk 00:00:41]} {[%emt 00:00:06]} Bxf5 {[%clk 00:00:10]} {[%emt
00:00:02]} 25. Bxf5 {[%clk 00:00:42]} {[%emt 00:00:01]} Rxf5 {[%clk 00:00:10]}
{[%emt 00:00:02]} 26. Ne4 {[%clk 00:00:43]} {[%emt 00:00:01]} Qd7 {[%clk
00:00:10]} {[%emt 00:00:02]} 27. c4 {[%clk 00:00:34]} {[%emt 00:00:10]} Nc7
{[%clk 00:00:11]} {[%emt 00:00:01]} 28. Nbc3 {[%clk 00:00:34]} {[%emt
00:00:02]} Ne8 {[%clk 00:00:11]} {[%emt 00:00:01]} 29. f4 {[%clk 00:00:34]}
{[%emt 00:00:03]} g6 {[%clk 00:00:12]} {[%emt 00:00:01]} 30. fxe5 {[%clk
00:00:33]} {[%emt 00:00:03]} dxe5 {[%clk 00:00:13]} {[%emt 00:00:01]} 31. Ng3
{[%clk 00:00:33]} {[%emt 00:00:02]} Rxf1 {[%clk 00:00:12]} {[%emt 00:00:03]} 32.
Rxf1 {[%clk 00:00:35]} Ng7 {[%clk 00:00:13]} {[%emt 00:00:02]} 33. Nce4 {[%clk
00:00:35]} {[%emt 00:00:02]} Nd6 {[%clk 00:00:14]} 34. Nxc5 {[%clk 00:00:35]}
{[%emt 00:00:02]} Qg4 {[%clk 00:00:13]} {[%emt 00:00:03]} 35. Qxg4 {[%clk
00:00:29]} {[%emt 00:00:08]} hxg4 {[%clk 00:00:13]} {[%emt 00:00:02]} 36. b3
{[%clk 00:00:29]} {[%emt 00:00:02]} Ngf5 {[%clk 00:00:12]} {[%emt 00:00:02]} 37.
Nxf5 {[%clk 00:00:16]} {[%emt 00:00:16]} Nxf5 {[%clk 00:00:13]} {[%emt
00:00:01]} 38. Bg1 {[%clk 00:00:15]} {[%emt 00:00:03]} g3+ {[%clk 00:00:14]}
{[%emt 00:00:01]} 39. Kh3 {[%clk 00:00:16]} Rc8 {[%clk 00:00:14]} {[%emt
00:00:02]} 40. Nxb7 {[%clk 00:00:14]} {[%emt 00:00:04]} Rb8 {[%clk 00:00:15]}
{[%emt 00:00:01]} 41. a6 {[%clk 00:00:15]} e4 {[%clk 00:00:13]} {[%emt
00:00:03]} 42. c5 {[%clk 00:00:13]} {[%emt 00:00:04]} e3 {[%clk 00:00:12]}
{[%emt 00:00:04]} 43. d6 {[%clk 00:00:14]} {[%emt 00:00:01]} e2 {[%clk
00:00:12]} {[%emt 00:00:01]} 44. Re1 {[%clk 00:00:16]} Bd8 {[%clk 00:00:12]}
{[%emt 00:00:03]} 45. Rxe2 {[%clk 00:00:16]} {[%emt 00:00:06]} 1-0

[Event "UK Open Blitz Championships 2024 - London Qualifier"]
[Site "London, United Kingdom"]
[Date "2024.09.21"]
[Round "4.4"]
[White "Banerjee, Supratit"]
[Black "Badacsonyi, Stanley"]
[Result "0-1"]
[TimeControl "3 minutes + 2 seconds incr. from move 1"]
[WhiteTitle "CM"]
[BlackTitle "FM"]
[WhiteFideId "2410079"]
[BlackFideId "486973"]
[WhiteElo "2138"]
[BlackElo "2332"]

1. e4 {[%clk 00:03:02]} {[%emt 00:00:02]} e6 {[%clk 00:03:04]} 2. d4 {[%clk
00:03:03]} d5 {[%clk 00:03:05]} 3. exd5 {[%clk 00:03:04]} {[%emt 00:00:01]}
exd5 {[%clk 00:03:06]} 4. Nf3 {[%clk 00:03:05]} {[%emt 00:00:01]} Bd6 {[%clk
00:03:06]} {[%emt 00:00:02]} 5. Bd3 {[%clk 00:03:05]} {[%emt 00:00:02]} Nc6
{[%clk 00:03:06]} {[%emt 00:00:02]} 6. O-O {[%clk 00:03:05]} {[%emt 00:00:02]}
Nge7 {[%clk 00:03:07]} {[%emt 00:00:01]} 7. c3 {[%clk 00:03:06]} Bg4 {[%clk
00:03:08]} {[%emt 00:00:01]} 8. Re1 {[%clk 00:03:08]} Qd7 {[%clk 00:03:09]}
{[%emt 00:00:02]} 9. b4 {[%clk 00:03:08]} {[%emt 00:00:01]} f6 {[%clk
00:03:09]} {[%emt 00:00:03]} 10. a4 {[%clk 00:03:06]} {[%emt 00:00:04]} O-O
{[%clk 00:03:09]} {[%emt 00:00:02]} 11. Nbd2 {[%clk 00:02:56]} {[%emt
00:00:11]} Ng6 {[%clk 00:03:00]} {[%emt 00:00:11]} 12. Nb3 {[%clk 00:02:53]}
{[%emt 00:00:05]} Rae8 {[%clk 00:02:59]} {[%emt 00:00:04]} 13. Be3 {[%clk
00:02:32]} {[%emt 00:00:22]} Bf5 {[%clk 00:02:40]} {[%emt 00:00:21]} 14. b5
{[%clk 00:02:19]} {[%emt 00:00:15]} Nce7 {[%clk 00:02:40]} {[%emt 00:00:02]} 15.
Nc5 {[%clk 00:02:17]} {[%emt 00:00:04]} Qc8 {[%clk 00:02:41]} {[%emt 00:00:01]}
16. c4 {[%clk 00:01:38]} {[%emt 00:00:41]} b6 {[%clk 00:02:33]} {[%emt
00:00:10]} 17. Nb3 {[%clk 00:01:30]} {[%emt 00:00:10]} Bxd3 {[%clk 00:02:33]}
{[%emt 00:00:02]} 18. Qxd3 {[%clk 00:01:31]} dxc4 {[%clk 00:02:34]} {[%emt
00:00:01]} 19. Qxc4+ {[%clk 00:01:31]} {[%emt 00:00:02]} Kh8 {[%clk 00:02:36]}
20. a5 {[%clk 00:01:31]} {[%emt 00:00:02]} Qf5 {[%clk 00:02:31]} {[%emt
00:00:07]} 21. Nbd2 {[%clk 00:01:06]} {[%emt 00:00:27]} Nd5 {[%clk 00:02:27]}
{[%emt 00:00:06]} 22. axb6 {[%clk 00:01:05]} {[%emt 00:00:03]} axb6 {[%clk
00:02:28]} {[%emt 00:00:01]} 23. Nf1 {[%clk 00:00:57]} {[%emt 00:00:09]} Ngf4
{[%clk 00:02:14]} {[%emt 00:00:16]} 24. Ng3 {[%clk 00:00:46]} {[%emt 00:00:13]}
Qd3 {[%clk 00:01:37]} {[%emt 00:00:40]} 25. Qxd3 {[%clk 00:00:20]} {[%emt
00:00:28]} Nxd3 {[%clk 00:01:38]} 26. Red1 {[%clk 00:00:19]} {[%emt 00:00:04]}
Nb2 {[%clk 00:01:37]} {[%emt 00:00:03]} 27. Re1 {[%clk 00:00:16]} {[%emt
00:00:05]} Nc4 {[%clk 00:01:35]} {[%emt 00:00:05]} 28. Nf5 {[%clk 00:00:17]}
Bb4 {[%clk 00:01:31]} {[%emt 00:00:06]} 29. Re2 {[%clk 00:00:17]} {[%emt
00:00:02]} g6 {[%clk 00:01:31]} {[%emt 00:00:02]} 30. Rc1 {[%clk 00:00:13]}
{[%emt 00:00:06]} gxf5 {[%clk 00:01:27]} {[%emt 00:00:06]} 31. Rxc4 {[%clk
00:00:12]} {[%emt 00:00:03]} f4 {[%clk 00:01:29]} 32. Bd2 {[%clk 00:00:11]}
{[%emt 00:00:03]} Rxe2 {[%clk 00:01:28]} {[%emt 00:00:03]} 33. Bxb4 {[%clk
00:00:12]} Ra8 {[%clk 00:01:27]} {[%emt 00:00:03]} 34. h3 {[%clk 00:00:11]}
{[%emt 00:00:02]} Ra4 {[%clk 00:01:28]} 35. Rc6 {[%clk 00:00:07]} {[%emt
00:00:07]} Rxb4 {[%clk 00:01:28]} {[%emt 00:00:02]} 36. Nh4 {[%clk 00:00:07]}
{[%emt 00:00:01]} Rxb5 {[%clk 00:01:25]} {[%emt 00:00:05]} 37. Nf5 {[%clk
00:00:08]} {[%emt 00:00:01]} Ne7 {[%clk 00:01:25]} {[%emt 00:00:02]} 38. Nxe7
{[%clk 00:00:08]} {[%emt 00:00:02]} Rxe7 {[%clk 00:01:26]} {[%emt 00:00:01]} 39.
Rxf6 {[%clk 00:00:08]} {[%emt 00:00:01]} Rd5 {[%clk 00:01:27]} {[%emt
00:00:02]} 40. Rxf4 {[%clk 00:00:09]} {[%emt 00:00:01]} Red7 {[%clk 00:01:28]}
41. Rf8+ {[%clk 00:00:10]} Kg7 {[%clk 00:01:30]} 42. Rc8 {[%clk 00:00:11]}
{[%emt 00:00:01]} Rxd4 {[%clk 00:01:31]} 43. g3 {[%clk 00:00:12]} {[%emt
00:00:01]} b5 {[%clk 00:01:32]} 44. Rb8 {[%clk 00:00:13]} {[%emt 00:00:01]} b4
{[%clk 00:01:33]} {[%emt 00:00:01]} 45. f4 {[%clk 00:00:14]} Rc4 {[%clk
00:01:33]} {[%emt 00:00:03]} 46. Kf2 {[%clk 00:00:15]} {[%emt 00:00:01]} Rd3
{[%emt 00:00:03]} 47. Ke2 {[%clk 00:00:15]} Rxg3 {[%clk 00:01:35]} 48. Kd2
{[%clk 00:00:17]} Rxf4 {[%clk 00:01:35]} {[%emt 00:00:02]} 49. Ke2 {[%clk
00:00:18]} {[%emt 00:00:02]} Rxh3 {[%clk 00:01:35]} {[%emt 00:00:01]} 50. Rb7
{[%clk 00:00:19]} {[%emt 00:00:01]} Rc4 {[%clk 00:01:36]} 51. Kd2 {[%clk
00:00:21]} b3 {[%clk 00:01:37]} {[%emt 00:00:01]} 52. Kd1 {[%clk 00:00:20]}
{[%emt 00:00:03]} Rc2 {[%clk 00:01:35]} {[%emt 00:00:03]} 53. Rxb3 {[%clk
00:00:19]} {[%emt 00:00:03]} Rxb3 {[%clk 00:01:36]} 54. Kxc2 {[%clk 00:00:19]}
{[%emt 00:00:02]} Rg3 {[%clk 00:01:37]} 55. Kd2 {[%clk 00:00:20]} h5 {[%clk
00:01:39]} 56. Ke2 {[%clk 00:00:22]} h4 {[%clk 00:01:40]} 57. Kf2 {[%clk
00:00:23]} c5 {[%clk 00:01:42]} 58. Ke2 {[%clk 00:00:25]} h3 {[%clk 00:01:43]}
{[%emt 00:00:01]} 59. Kf2 {[%clk 00:00:26]} Rg6 {[%clk 00:01:44]} 60. Kf1
{[%clk 00:00:27]} h2 {[%clk 00:01:45]} {[%emt 00:00:02]} 61. Ke2 {[%clk
00:00:29]} h1=Q {[%emt 00:00:03]} 62. Kd3 {[%clk 00:00:30]} Qf3+ {[%clk
00:01:44]} {[%emt 00:00:02]} 63. Kc4 {[%clk 00:00:31]} Rg4+ {[%clk 00:01:46]}
64. Kb5 {[%clk 00:00:33]} Qb3+ {[%clk 00:01:47]} 65. Kc6 {[%clk 00:00:34]} Rg6+
{[%emt 00:00:02]} 66. Kd7 {[%clk 00:00:34]} {[%emt 00:00:01]} Qb7+ {[%clk
00:01:49]} {[%emt 00:00:01]} 67. Kd8 {[%clk 00:00:34]} {[%emt 00:00:02]} Rd6+
{[%clk 00:01:49]} {[%emt 00:00:02]} 68. Ke8 {[%clk 00:00:35]} {[%emt 00:00:01]}
Qf7# {[%clk 00:01:50]} 0-1

[Event "UK Open Blitz Championships 2024 - London Qualifier"]
[Site "London, United Kingdom"]
[Date "2024.09.21"]
[Round "5.1"]
[White "Royal, Shreyas"]
[Black "Ghasi, Ameet K"]
[Result "1-0"]
[TimeControl "3 minutes + 2 seconds incr. from move 1"]
[WhiteTitle "IM"]
[BlackTitle "IM"]
[WhiteFideId "448869"]
[BlackFideId "409200"]
[WhiteElo "2331"]
[BlackElo "2524"]

1. Nf3 {[%clk 00:03:03]} Nf6 {[%clk 00:03:03]} {[%emt 00:00:02]} 2. d4 {[%clk
00:03:04]} g6 {[%clk 00:03:04]} 3. Nc3 {[%clk 00:03:05]} {[%emt 00:00:01]} d6
{[%clk 00:03:04]} {[%emt 00:00:02]} 4. e4 {[%clk 00:03:02]} {[%emt 00:00:05]}
Bg7 {[%clk 00:03:02]} {[%emt 00:00:04]} 5. Be2 {[%clk 00:03:01]} {[%emt
00:00:03]} O-O {[%clk 00:02:59]} {[%emt 00:00:05]} 6. O-O {[%clk 00:03:01]}
{[%emt 00:00:02]} Bg4 {[%clk 00:02:59]} {[%emt 00:00:02]} 7. Be3 {[%clk
00:02:55]} {[%emt 00:00:08]} Nc6 {[%clk 00:02:58]} {[%emt 00:00:04]} 8. d5
{[%clk 00:02:47]} {[%emt 00:00:10]} Bxf3 {[%clk 00:02:57]} {[%emt 00:00:03]} 9.
Bxf3 {[%clk 00:02:48]} {[%emt 00:00:02]} Ne5 {[%clk 00:02:58]} 10. Be2 {[%clk
00:02:49]} c6 {[%clk 00:02:59]} 11. f4 {[%clk 00:02:45]} {[%emt 00:00:06]} Ned7
{[%clk 00:02:59]} {[%emt 00:00:01]} 12. dxc6 bxc6 {[%clk 00:03:01]} 13. Qd2
{[%clk 00:02:44]} {[%emt 00:00:03]} Qc7 {[%clk 00:02:28]} {[%emt 00:00:34]} 14.
Rad1 {[%clk 00:02:36]} {[%emt 00:00:10]} Rab8 {[%clk 00:02:16]} {[%emt
00:00:15]} 15. b3 {[%clk 00:02:37]} Rfe8 {[%clk 00:01:57]} {[%emt 00:00:20]} 16.
Bf3 {[%clk 00:02:25]} {[%emt 00:00:14]} a5 {[%clk 00:01:32]} {[%emt 00:00:28]}
17. Rfe1 {[%clk 00:02:19]} {[%emt 00:00:08]} Rbd8 {[%clk 00:01:22]} {[%emt
00:00:12]} 18. Qf2 {[%clk 00:02:12]} {[%emt 00:00:08]} e6 {[%clk 00:01:17]}
{[%emt 00:00:07]} 19. Bd4 {[%clk 00:01:58]} {[%emt 00:00:16]} Rb8 {[%clk
00:01:02]} {[%emt 00:00:17]} 20. e5 {[%clk 00:01:39]} {[%emt 00:00:21]} dxe5
{[%clk 00:00:59]} {[%emt 00:00:05]} 21. fxe5 {[%clk 00:01:29]} {[%emt
00:00:13]} Nd5 {[%clk 00:01:00]} 22. Qg3 {[%clk 00:01:18]} {[%emt 00:00:13]}
Rb4 {[%clk 00:00:53]} {[%emt 00:00:09]} 23. Nxd5 {[%clk 00:01:16]} {[%emt
00:00:04]} cxd5 {[%clk 00:00:54]} {[%emt 00:00:01]} 24. c3 {[%clk 00:01:17]}
{[%emt 00:00:01]} Rbb8 {[%clk 00:00:44]} {[%emt 00:00:12]} 25. h4 {[%clk
00:01:10]} {[%emt 00:00:09]} Rbc8 {[%clk 00:00:40]} {[%emt 00:00:06]} 26. h5
{[%clk 00:01:08]} {[%emt 00:00:03]} Nb8 {[%clk 00:00:41]} 27. Qf4 {[%clk
00:00:34]} {[%emt 00:00:36]} Nc6 {[%clk 00:00:42]} {[%emt 00:00:02]} 28. h6
{[%clk 00:00:32]} {[%emt 00:00:04]} Bf8 {[%clk 00:00:38]} {[%emt 00:00:05]} 29.
Rc1 {[%clk 00:00:32]} {[%emt 00:00:02]} Qe7 {[%clk 00:00:35]} {[%emt 00:00:05]}
30. Bf2 {[%clk 00:00:29]} {[%emt 00:00:04]} Rc7 {[%clk 00:00:22]} {[%emt
00:00:16]} 31. Bh4 {[%clk 00:00:30]} {[%emt 00:00:01]} Qa3 {[%clk 00:00:23]}
{[%emt 00:00:01]} 32. c4 {[%clk 00:00:29]} {[%emt 00:00:03]} d4 {[%clk
00:00:16]} {[%emt 00:00:09]} 33. Bxc6 {[%clk 00:00:18]} {[%emt 00:00:12]} Rxc6
{[%clk 00:00:17]} 34. Rc2 {[%clk 00:00:19]} {[%emt 00:00:01]} a4 {[%clk
00:00:12]} {[%emt 00:00:07]} 35. Qf3 {[%clk 00:00:15]} {[%emt 00:00:05]} Rc7
{[%clk 00:00:12]} {[%emt 00:00:03]} 36. Rd1 {[%clk 00:00:16]} Qc5 {[%clk
00:00:12]} {[%emt 00:00:02]} 37. Bf2 {[%clk 00:00:15]} {[%emt 00:00:03]} Rd7
{[%clk 00:00:11]} {[%emt 00:00:03]} 38. Qe4 {[%clk 00:00:16]} {[%emt 00:00:01]}
Red8 {[%clk 00:00:12]} 39. Rcd2 {[%clk 00:00:17]} Bxh6 {[%clk 00:00:13]} {[%emt
00:00:01]} 40. Rxd4 {[%clk 00:00:17]} {[%emt 00:00:02]} Qc7 {[%clk 00:00:13]}
{[%emt 00:00:02]} 41. b4 {[%clk 00:00:14]} {[%emt 00:00:05]} a3 {[%clk
00:00:11]} {[%emt 00:00:04]} 42. c5 {[%clk 00:00:15]} {[%emt 00:00:01]} Bg7
{[%clk 00:00:12]} 43. Rd6 {[%clk 00:00:16]} {[%emt 00:00:01]} Bf8 {[%clk
00:00:10]} {[%emt 00:00:04]} 44. Bg3 {[%clk 00:00:15]} {[%emt 00:00:03]} Bxd6
{[%clk 00:00:08]} {[%emt 00:00:04]} 45. exd6 {[%clk 00:00:16]} {[%emt
00:00:01]} Qa7 {[%clk 00:00:08]} {[%emt 00:00:01]} 46. Be5 {[%clk 00:00:17]}
{[%emt 00:00:01]} Rb8 {[%clk 00:00:08]} {[%emt 00:00:03]} 47. Qh4 {[%clk
00:00:17]} {[%emt 00:00:02]} Qa4 {[%clk 00:00:05]} {[%emt 00:00:05]} 48. Rd4
{[%clk 00:00:16]} {[%emt 00:00:02]} f5 {[%clk 00:00:05]} {[%emt 00:00:02]} 49.
Qf6 {[%clk 00:00:17]} Qc2 {[%clk 00:00:04]} {[%emt 00:00:04]} 50. Qh8+ {[%clk
00:00:17]} {[%emt 00:00:01]} Kf7 {[%clk 00:00:05]} 51. Qg7+ {[%clk 00:00:19]}
{[%emt 00:00:01]} Ke8 {[%clk 00:00:06]} 52. Qg8# {[%clk 00:00:17]} {[%emt
00:00:01]} 1-0

[Event "UK Open Blitz Championships 2024 - London Qualifier"]
[Site "London, United Kingdom"]
[Date "2024.09.21"]
[Round "5.2"]
[White "Korshunov, Sergey"]
[Black "Roberson, Peter T"]
[Result "0-1"]
[TimeControl "3 minutes + 2 seconds incr. from move 1"]
[WhiteTitle "FM"]
[BlackTitle "IM"]
[WhiteFideId "34274715"]
[BlackFideId "412384"]
[WhiteElo "2278"]
[BlackElo "2346"]

1. e4 {[%clk 00:03:03]} e6 {[%clk 00:03:03]} {[%emt 00:00:01]} 2. d4 {[%clk
00:03:04]} d5 {[%clk 00:03:04]} 3. e5 {[%clk 00:03:05]} c5 {[%clk 00:03:05]}
{[%emt 00:00:02]} 4. c3 {[%clk 00:03:06]} Nc6 {[%clk 00:03:07]} 5. Nf3 {[%clk
00:03:08]} Bd7 {[%clk 00:03:08]} 6. Na3 {[%clk 00:03:09]} {[%emt 00:00:01]}
cxd4 {[%clk 00:02:52]} {[%emt 00:00:18]} 7. cxd4 {[%clk 00:03:10]} {[%emt
00:00:01]} Bxa3 {[%clk 00:02:50]} {[%emt 00:00:04]} 8. bxa3 {[%clk 00:03:11]}
{[%emt 00:00:02]} Nge7 {[%clk 00:02:50]} {[%emt 00:00:02]} 9. Bd3 {[%clk
00:03:08]} {[%emt 00:00:05]} Nf5 {[%clk 00:02:46]} {[%emt 00:00:06]} 10. O-O
{[%clk 00:03:00]} {[%emt 00:00:10]} Nfxd4 {[%clk 00:02:37]} {[%emt 00:00:11]}
11. Nxd4 {[%clk 00:02:54]} {[%emt 00:00:08]} Nxd4 {[%clk 00:02:38]} 12. Qg4
{[%clk 00:02:55]} {[%emt 00:00:02]} Nf5 {[%clk 00:02:16]} {[%emt 00:00:23]} 13.
Bxf5 {[%clk 00:02:55]} {[%emt 00:00:02]} exf5 {[%clk 00:02:17]} {[%emt
00:00:01]} 14. Qxg7 {[%clk 00:02:56]} Rf8 {[%clk 00:02:04]} {[%emt 00:00:15]}
15. Rb1 {[%clk 00:02:09]} {[%emt 00:00:49]} Bc6 {[%clk 00:01:52]} {[%emt
00:00:14]} 16. Bg5 {[%clk 00:01:57]} {[%emt 00:00:15]} Qd7 {[%clk 00:01:24]}
{[%emt 00:00:29]} 17. Rfc1 {[%clk 00:01:44]} {[%emt 00:00:14]} Qe6 {[%clk
00:00:54]} {[%emt 00:00:32]} 18. Rxc6 {[%clk 00:00:36]} {[%emt 00:01:10]} Qxc6
{[%clk 00:00:32]} {[%emt 00:00:25]} 19. e6 {[%clk 00:00:37]} Qxe6 {[%clk
00:00:23]} {[%emt 00:00:10]} 20. Bd2 {[%clk 00:00:32]} {[%emt 00:00:07]} O-O-O
{[%clk 00:00:13]} {[%emt 00:00:13]} 21. Bf4 {[%clk 00:00:31]} {[%emt 00:00:03]}
Rfe8 {[%clk 00:00:05]} {[%emt 00:00:10]} 22. Qc3+ {[%clk 00:00:31]} {[%emt
00:00:02]} Qc6 {[%clk 00:00:06]} {[%emt 00:00:01]} 23. Qd3 {[%clk 00:00:27]}
{[%emt 00:00:05]} Re4 {[%clk 00:00:07]} {[%emt 00:00:02]} 24. g3 {[%clk
00:00:25]} {[%emt 00:00:04]} Rde8 {[%clk 00:00:08]} {[%emt 00:00:01]} 25. Kg2
{[%clk 00:00:24]} {[%emt 00:00:03]} Rc4 {[%clk 00:00:08]} {[%emt 00:00:01]} 26.
Qxf5+ {[%clk 00:00:24]} {[%emt 00:00:02]} Qe6 {[%clk 00:00:09]} {[%emt
00:00:02]} 27. Qxh7 {[%clk 00:00:19]} {[%emt 00:00:07]} Qe4+ {[%clk 00:00:09]}
{[%emt 00:00:02]} 28. Qxe4 {[%clk 00:00:20]} Rexe4 {[%clk 00:00:09]} {[%emt
00:00:01]} 29. h4 {[%clk 00:00:22]} Rc2 {[%clk 00:00:06]} {[%emt 00:00:05]} 30.
Rd1 {[%clk 00:00:21]} {[%emt 00:00:03]} Ree2 {[%clk 00:00:07]} {[%emt
00:00:01]} 31. Rxd5 {[%clk 00:00:22]} Rxf2+ {[%emt 00:00:02]} 32. Kh3 {[%clk
00:00:22]} Rxa2 {[%emt 00:00:01]} 33. h5 {[%clk 00:00:14]} {[%emt 00:00:10]}
Rh2+ {[%clk 00:00:07]} {[%emt 00:00:04]} 34. Kg4 {[%clk 00:00:16]} Rxa3 {[%clk
00:00:07]} {[%emt 00:00:01]} 35. h6 {[%clk 00:00:17]} a5 {[%clk 00:00:07]}
{[%emt 00:00:02]} 36. Bd6 {[%clk 00:00:04]} {[%emt 00:00:16]} Ra1 {[%clk
00:00:06]} {[%emt 00:00:03]} 37. Bc5 {[%clk 00:00:05]} Rxh6 {[%clk 00:00:07]}
{[%emt 00:00:02]} 38. Bd4 {[%clk 00:00:05]} {[%emt 00:00:02]} Rd1 {[%clk
00:00:07]} {[%emt 00:00:01]} 39. Rc5+ {[%clk 00:00:06]} Kd7 {[%clk 00:00:08]}
40. Be3 {[%clk 00:00:06]} {[%emt 00:00:02]} Re6 {[%clk 00:00:09]} 41. Bf4
{[%clk 00:00:07]} {[%emt 00:00:01]} a4 {[%clk 00:00:10]} {[%emt 00:00:01]} 42.
Rc7+ {[%clk 00:00:09]} Ke8 {[%clk 00:00:11]} {[%emt 00:00:01]} 43. Rxb7 {[%clk
00:00:10]} Ra6 {[%clk 00:00:11]} {[%emt 00:00:02]} 44. Bg5 {[%clk 00:00:10]}
{[%emt 00:00:03]} f6 {[%clk 00:00:08]} {[%emt 00:00:05]} 45. Bf4 {[%clk
00:00:07]} {[%emt 00:00:05]} a3 {[%clk 00:00:09]} {[%emt 00:00:01]} 46. Rb8+
{[%clk 00:00:07]} {[%emt 00:00:02]} Rd8 {[%clk 00:00:09]} {[%emt 00:00:02]} 47.
Rb1 {[%clk 00:00:08]} a2 {[%clk 00:00:10]} {[%emt 00:00:01]} 48. Ra1 {[%clk
00:00:09]} Rd3 {[%clk 00:00:11]} {[%emt 00:00:01]} 49. Kf5 {[%clk 00:00:10]}
{[%emt 00:00:01]} Rb3 {[%clk 00:00:11]} {[%emt 00:00:01]} 50. Be3 {[%clk
00:00:11]} {[%emt 00:00:01]} Rb1 {[%clk 00:00:12]} 51. Bd4 {[%clk 00:00:13]}
{[%emt 00:00:01]} Rxa1 {[%clk 00:00:12]} {[%emt 00:00:01]} 52. Bxa1 {[%clk
00:00:14]} Rb6 {[%clk 00:00:14]} 53. g4 {[%clk 00:00:16]} Rb1 {[%clk 00:00:15]}
{[%emt 00:00:01]} 0-1